[Event "Titled Tuesday Blitz February 15 Early 2022"]
[White "Jumabayev, Rinat"]
[Black "Hakobyan, Aram"]
[WhiteFideId "13702661"]
[BlackFideId "13306677"]
[WhiteElo "2561"]
[BlackElo "2557"]
[Result "1-0"]
[Round "09"]
[TimeControl "180+1"]
[Date "2022.02.15"]
[WhiteClock "0:01:27"]
[BlackClock "0:00:32"]

1. e4 {[%clk 0:03:00]}  c6 {[%clk 0:02:57]} 2. Nf3 {[%clk 0:03:01]}  d5 {[%clk 0:02:58]} 3. d3 {[%clk 0:03:01]}  g6 {[%clk 0:02:57]} 4. Be2 {[%clk 0:03:01]}  Bg7 {[%clk 0:02:57]} 5. O-O {[%clk 0:03:02]}  Bg4 {[%clk 0:02:57]} 6. Nbd2 {[%clk 0:02:58]}  Nd7 {[%clk 0:02:57]} 7. exd5 {[%clk 0:02:57]}  cxd5 {[%clk 0:02:58]} 8. d4 {[%clk 0:02:57]}  Bxf3 {[%clk 0:02:57]} 9. Nxf3 {[%clk 0:02:57]}  e6 {[%clk 0:02:58]} 10. c3 {[%clk 0:02:56]}  Ne7 {[%clk 0:02:58]} 11. Bf4 {[%clk 0:02:56]}  O-O {[%clk 0:02:58]} 12. a4 {[%clk 0:02:56]}  Nc6 {[%clk 0:02:52]} 13. h3 {[%clk 0:02:53]}  Re8 {[%clk 0:02:52]} 14. Re1 {[%clk 0:02:52]}  Rc8 {[%clk 0:02:51]} 15. Bf1 {[%clk 0:02:44]}  Qb6 {[%clk 0:02:51]} 16. Rb1 {[%clk 0:02:41]}  Nf6 {[%clk 0:02:51]} 17. Bd3 {[%clk 0:02:37]}  a6 {[%clk 0:02:51]} 18. Bg5 {[%clk 0:02:18]}  h6 {[%clk 0:02:48]} 19. Bf4 {[%clk 0:02:17]}  Kh7 {[%clk 0:02:12]} 20. Qd2 {[%clk 0:02:11]}  Na5 {[%clk 0:02:04]} 21. Ne5 {[%clk 0:02:10]}  Nc4 {[%clk 0:02:04]} 22. Bxc4 {[%clk 0:02:10]}  dxc4 {[%clk 0:02:04]} 23. Nxf7 {[%clk 0:02:10]}  g5 {[%clk 0:02:04]} 24. Bh2 {[%clk 0:02:03]}  Re7 {[%clk 0:01:59]} 25. Ne5 {[%clk 0:01:59]}  Qb3 {[%clk 0:01:51]} 26. f4 {[%clk 0:01:53]}  gxf4 {[%clk 0:01:48]} 27. Bxf4 {[%clk 0:01:54]}  Nd5 {[%clk 0:01:46]} 28. Bg3 {[%clk 0:01:54]}  Rf8 {[%clk 0:01:42]} 29. Rf1 {[%clk 0:01:49]}  Ree8 {[%clk 0:01:18]} 30. Qe2 {[%clk 0:01:47]}  Qxa4 {[%clk 0:01:13]} 31. Nxc4 {[%clk 0:01:40]}  Qb5 {[%clk 0:01:00]} 32. Qe4+ {[%clk 0:01:39]}  Kh8 {[%clk 0:00:58]} 33. Nd6 {[%clk 0:01:40]}  Qd7 {[%clk 0:00:28]} 34. Nxe8 {[%clk 0:01:37]}  Rxe8 {[%clk 0:00:29]} 35. Be5 {[%clk 0:01:36]}  Rg8 {[%clk 0:00:28]} 36. Rf3 {[%clk 0:01:33]}  Bxe5 {[%clk 0:00:24]} 37. Qxe5+ {[%clk 0:01:34]}  Qg7 {[%clk 0:00:25]} 38. Qxg7+ {[%clk 0:01:32]}  Rxg7 {[%clk 0:00:26]} 39. Rbf1 {[%clk 0:01:31]}  b5 {[%clk 0:00:27]} 40. Rf8+ {[%clk 0:01:30]}  Kh7 {[%clk 0:00:27]} 41. R1f7 {[%clk 0:01:30]}  Ne3 {[%clk 0:00:28]} 42. Rxg7+ {[%clk 0:01:29]}  Kxg7 {[%clk 0:00:29]} 43. Ra8 {[%clk 0:01:29]}  Nd1 {[%clk 0:00:29]} 44. Rxa6 {[%clk 0:01:29]}  Nxb2 {[%clk 0:00:30]} 45. Rxe6 {[%clk 0:01:28]}  Na4 {[%clk 0:00:31]} 46. Rc6 {[%clk 0:01:29]}  Kf7 {[%clk 0:00:31]} 47. g4 {[%clk 0:01:27]}  Ke7 {[%clk 0:00:32]} 48. h4 {[%clk 0:01:27]}  Kd7 {[%clk 0:00:32]} 49. d5 {[%clk 0:01:27]} 1-0


[Site "https://www.chess.com"]

[Event "Titled Tuesday Blitz February 15 Early 2022"]
[White "Kejzar, Petra"]
[Black "Altucher, James"]
[WhiteFideId "14610213"]
[BlackFideId "30987458"]
[WhiteElo "2006"]
[BlackElo "2170"]
[Result "1-0"]
[Round "09"]
[TimeControl "180+1"]
[Date "2022.02.15"]
[WhiteClock "0:00:12"]
[BlackClock "0:00:19"]

1. e4 {[%clk 0:03:00]}  g6 {[%clk 0:03:00]} 2. d4 {[%clk 0:03:00]}  d6 {[%clk 0:03:01]} 3. Nf3 {[%clk 0:02:58]}  Bg7 {[%clk 0:03:01]} 4. Be3 {[%clk 0:02:56]}  a6 {[%clk 0:02:58]} 5. Nc3 {[%clk 0:02:52]}  b5 {[%clk 0:02:58]} 6. Bd3 {[%clk 0:02:48]}  Bb7 {[%clk 0:02:58]} 7. Qd2 {[%clk 0:02:45]}  Nd7 {[%clk 0:02:57]} 8. g4 {[%clk 0:02:39]}  c5 {[%clk 0:02:40]} 9. h4 {[%clk 0:02:25]}  c4 {[%clk 0:02:34]} 10. Be2 {[%clk 0:02:20]}  b4 {[%clk 0:02:31]} 11. Nd5 {[%clk 0:02:20]}  Bxd5 {[%clk 0:02:29]} 12. exd5 {[%clk 0:02:20]}  Ngf6 {[%clk 0:02:27]} 13. Bxc4 {[%clk 0:02:16]}  Nxg4 {[%clk 0:02:27]} 14. h5 {[%clk 0:02:10]}  Nxe3 {[%clk 0:02:25]} 15. fxe3 {[%clk 0:02:08]}  Qc7 {[%clk 0:02:14]} 16. Bb3 {[%clk 0:02:03]}  a5 {[%clk 0:02:14]} 17. a4 {[%clk 0:01:57]}  O-O {[%clk 0:02:03]} 18. O-O-O {[%clk 0:01:41]}  Nb6 {[%clk 0:01:43]} 19. hxg6 {[%clk 0:01:38]}  fxg6 {[%clk 0:01:40]} 20. Ng5 {[%clk 0:01:36]}  Nc4 {[%clk 0:01:38]} 21. Qh2 {[%clk 0:01:27]}  h6 {[%clk 0:01:30]} 22. Ne6 {[%clk 0:01:24]}  Qc8 {[%clk 0:01:18]} 23. Nxg7 {[%clk 0:01:16]}  Nxe3 {[%clk 0:00:49]} 24. Qxh6 {[%clk 0:00:55]}  Rf6 {[%clk 0:00:37]} 25. Rde1 {[%clk 0:00:38]}  Ng4 {[%clk 0:00:20]} 26. Qh7+ {[%clk 0:00:29]}  Kf7 {[%clk 0:00:20]} 27. Ne6+ {[%clk 0:00:28]}  Ke8 {[%clk 0:00:20]} 28. Qg7 {[%clk 0:00:15]}  Kd7 {[%clk 0:00:20]} 29. Nc5+ {[%clk 0:00:13]}  dxc5 {[%clk 0:00:19]} 30. Qxe7# {[%clk 0:00:12]} 1-0


[Site "https://www.chess.com"]

[Event "Titled Tuesday Blitz February 15 Early 2022"]
[White "Kezin, Roman"]
[Black "Sadovsky, Artem"]
[WhiteFideId "24124621"]
[BlackFideId "4155840"]
[WhiteElo "2509"]
[BlackElo "2369"]
[Result "1-0"]
[Round "09"]
[TimeControl "180+1"]
[Date "2022.02.15"]
[WhiteClock "0:02:15"]
[BlackClock "0:00:04"]

1. b3 {[%clk 0:03:00]}  e5 {[%clk 0:02:56]} 2. Bb2 {[%clk 0:03:01]}  d6 {[%clk 0:02:53]} 3. e3 {[%clk 0:03:02]}  Nf6 {[%clk 0:02:53]} 4. c4 {[%clk 0:03:01]}  Be7 {[%clk 0:02:36]} 5. g3 {[%clk 0:03:02]}  O-O {[%clk 0:02:32]} 6. Bg2 {[%clk 0:03:02]}  Re8 {[%clk 0:02:22]} 7. Ne2 {[%clk 0:03:03]}  h5 {[%clk 0:02:19]} 8. h3 {[%clk 0:02:59]}  Bf5 {[%clk 0:02:13]} 9. O-O {[%clk 0:02:58]}  Qc8 {[%clk 0:02:10]} 10. Kh2 {[%clk 0:02:58]}  c6 {[%clk 0:01:55]} 11. Nbc3 {[%clk 0:02:46]}  Bd3 {[%clk 0:01:44]} 12. f4 {[%clk 0:02:40]}  e4 {[%clk 0:01:42]} 13. Rf2 {[%clk 0:02:40]}  d5 {[%clk 0:01:40]} 14. Nc1 {[%clk 0:02:33]}  dxc4 {[%clk 0:01:35]} 15. bxc4 {[%clk 0:02:34]}  Bxc4 {[%clk 0:01:36]} 16. Nxe4 {[%clk 0:02:34]}  Nbd7 {[%clk 0:01:07]} 17. Ng5 {[%clk 0:02:34]}  Nf8 {[%clk 0:00:24]} 18. e4 {[%clk 0:02:25]}  Bc5 {[%clk 0:00:14]} 19. d4 {[%clk 0:02:21]}  Rd8 {[%clk 0:00:06]} 20. e5 {[%clk 0:02:20]}  N6h7 {[%clk 0:00:06]} 21. Ne4 {[%clk 0:02:16]}  Bxd4 {[%clk 0:00:04]} 22. Bxd4 {[%clk 0:02:15]} 1-0


[Site "https://www.chess.com"]

[Event "Titled Tuesday Blitz February 15 Early 2022"]
[White "Kopylov, Alexander A."]
[Black "Jaferian, Koosha"]
[WhiteFideId "4164857"]
[BlackFideId "12507440"]
[WhiteElo "2436"]
[BlackElo "2027"]
[Result "1-0"]
[Round "09"]
[TimeControl "180+1"]
[Date "2022.02.15"]
[WhiteClock "0:00:19"]
[BlackClock "0:00:09"]

1. e4 {[%clk 0:03:00]}  c6 {[%clk 0:03:00]} 2. Nf3 {[%clk 0:03:00]}  d5 {[%clk 0:03:00]} 3. d3 {[%clk 0:03:00]}  g6 {[%clk 0:03:00]} 4. g3 {[%clk 0:02:58]}  Bg7 {[%clk 0:03:00]} 5. Bg2 {[%clk 0:02:58]}  e5 {[%clk 0:03:01]} 6. O-O {[%clk 0:02:58]}  Ne7 {[%clk 0:03:01]} 7. Re1 {[%clk 0:02:57]}  Qc7 {[%clk 0:03:02]} 8. exd5 {[%clk 0:02:56]}  cxd5 {[%clk 0:03:02]} 9. c4 {[%clk 0:02:57]}  dxc4 {[%clk 0:02:41]} 10. dxc4 {[%clk 0:02:56]}  O-O {[%clk 0:02:42]} 11. Nc3 {[%clk 0:02:56]}  Nbc6 {[%clk 0:02:37]} 12. Nb5 {[%clk 0:02:48]}  Qb8 {[%clk 0:02:32]} 13. Be3 {[%clk 0:02:17]}  Be6 {[%clk 0:02:23]} 14. Qa4 {[%clk 0:02:05]}  h6 {[%clk 0:02:07]} 15. Rad1 {[%clk 0:02:04]}  Nf5 {[%clk 0:02:00]} 16. Bc5 {[%clk 0:02:02]}  Rd8 {[%clk 0:01:56]} 17. Nc3 {[%clk 0:01:48]}  Ncd4 {[%clk 0:01:44]} 18. Nd5 {[%clk 0:01:44]}  Bxd5 {[%clk 0:01:22]} 19. cxd5 {[%clk 0:01:44]}  b6 {[%clk 0:00:54]} 20. Ba3 {[%clk 0:01:30]}  Nxf3+ {[%clk 0:00:54]} 21. Bxf3 {[%clk 0:01:30]}  Nd4 {[%clk 0:00:55]} 22. Bg2 {[%clk 0:01:29]}  b5 {[%clk 0:00:53]} 23. Qa5 {[%clk 0:01:23]}  Qb6 {[%clk 0:00:34]} 24. Qxb6 {[%clk 0:01:00]}  axb6 {[%clk 0:00:35]} 25. Be7 {[%clk 0:01:01]}  Rd7 {[%clk 0:00:34]} 26. d6 {[%clk 0:01:00]}  Rxa2 {[%clk 0:00:30]} 27. Rxd4 {[%clk 0:00:50]}  exd4 {[%clk 0:00:31]} 28. Bc6 {[%clk 0:00:51]}  Raa7 {[%clk 0:00:32]} 29. Bxb5 {[%clk 0:00:51]}  Bf8 {[%clk 0:00:25]} 30. Bxd7 {[%clk 0:00:46]}  Rxd7 {[%clk 0:00:24]} 31. Re4 {[%clk 0:00:39]}  f5 {[%clk 0:00:21]} 32. Re5 {[%clk 0:00:34]}  Kf7 {[%clk 0:00:17]} 33. Bxf8 {[%clk 0:00:33]}  Kxf8 {[%clk 0:00:17]} 34. Rd5 {[%clk 0:00:34]}  Kf7 {[%clk 0:00:17]} 35. Rxd4 {[%clk 0:00:34]}  Ke6 {[%clk 0:00:18]} 36. Kg2 {[%clk 0:00:29]}  Rxd6 {[%clk 0:00:19]} 37. Rb4 {[%clk 0:00:29]}  g5 {[%clk 0:00:17]} 38. Kf3 {[%clk 0:00:28]}  Kd7 {[%clk 0:00:17]} 39. Ke3 {[%clk 0:00:28]}  Ke6 {[%clk 0:00:17]} 40. Rb5 {[%clk 0:00:28]}  Kf6 {[%clk 0:00:16]} 41. h3 {[%clk 0:00:27]}  Ke6 {[%clk 0:00:17]} 42. g4 {[%clk 0:00:28]}  f4+ {[%clk 0:00:17]} 43. Ke4 {[%clk 0:00:28]}  Kf6 {[%clk 0:00:18]} 44. f3 {[%clk 0:00:27]}  Ke6 {[%clk 0:00:18]} 45. h4 {[%clk 0:00:28]}  Kf6 {[%clk 0:00:17]} 46. Rf5+ {[%clk 0:00:26]}  Kg6 {[%clk 0:00:17]} 47. h5+ {[%clk 0:00:26]}  Kg7 {[%clk 0:00:17]} 48. Rb5 {[%clk 0:00:26]}  Kf7 {[%clk 0:00:14]} 49. Ke5 {[%clk 0:00:26]}  Ke7 {[%clk 0:00:14]} 50. Kf5 {[%clk 0:00:25]}  Rf6+ {[%clk 0:00:13]} 51. Ke5 {[%clk 0:00:24]}  Rc6 {[%clk 0:00:14]} 52. Rb4 {[%clk 0:00:24]}  Re6+ {[%clk 0:00:11]} 53. Kf5 {[%clk 0:00:24]}  Rf6+ {[%clk 0:00:10]} 54. Ke5 {[%clk 0:00:24]}  Re6+ {[%clk 0:00:11]} 55. Kd5 {[%clk 0:00:23]}  Re3 {[%clk 0:00:06]} 56. Rxb6 {[%clk 0:00:21]}  Rxf3 {[%clk 0:00:06]} 57. Rxh6 {[%clk 0:00:22]}  Rg3 {[%clk 0:00:05]} 58. Rh7+ {[%clk 0:00:20]}  Kf6 {[%clk 0:00:04]} 59. Rh6+ {[%clk 0:00:15]}  Kg7 {[%clk 0:00:04]} 60. Rg6+ {[%clk 0:00:15]}  Kf7 {[%clk 0:00:04]} 61. Rxg5 {[%clk 0:00:16]}  f3 {[%clk 0:00:04]} 62. h6 {[%clk 0:00:16]}  Rg2 {[%clk 0:00:03]} 63. Rf5+ {[%clk 0:00:15]}  Kg6 {[%clk 0:00:03]} 64. Rxf3 {[%clk 0:00:16]}  Rxb2 {[%clk 0:00:03]} 65. Rh3 {[%clk 0:00:16]}  Rb7 {[%clk 0:00:03]} 66. Ke5 {[%clk 0:00:15]}  Rh7 {[%clk 0:00:03]} 67. Kf4 {[%clk 0:00:15]}  Rxh6 {[%clk 0:00:04]} 68. Rxh6+ {[%clk 0:00:15]}  Kxh6 {[%clk 0:00:05]} 69. Kf5 {[%clk 0:00:16]}  Kg7 {[%clk 0:00:06]} 70. Kg5 {[%clk 0:00:16]}  Kh7 {[%clk 0:00:06]} 71. Kf6 {[%clk 0:00:17]}  Kg8 {[%clk 0:00:07]} 72. Kg6 {[%clk 0:00:17]}  Kh8 {[%clk 0:00:07]} 73. g5 {[%clk 0:00:18]}  Kg8 {[%clk 0:00:08]} 74. Kh6 {[%clk 0:00:18]}  Kh8 {[%clk 0:00:09]} 75. g6 {[%clk 0:00:19]} 1-0


[Site "https://www.chess.com"]

[Event "Titled Tuesday Blitz February 15 Early 2022"]
[White "Kovanova, Baira"]
[Black "Papasimakopoulos, Alexandros"]
[WhiteFideId "4164083"]
[BlackFideId "4244125"]
[WhiteElo "2190"]
[BlackElo "2340"]
[Result "1-0"]
[Round "09"]
[TimeControl "180+1"]
[Date "2022.02.15"]
[WhiteClock "0:00:24"]
[BlackClock "0:00:50"]

1. e4 {[%clk 0:03:00]}  e6 {[%clk 0:02:53]} 2. d4 {[%clk 0:02:56]}  d5 {[%clk 0:02:52]} 3. Nd2 {[%clk 0:02:56]}  Be7 {[%clk 0:02:50]} 4. e5 {[%clk 0:02:48]}  c5 {[%clk 0:02:50]} 5. Ndf3 {[%clk 0:02:42]}  Nc6 {[%clk 0:02:50]} 6. Ne2 {[%clk 0:02:34]}  cxd4 {[%clk 0:02:50]} 7. Nexd4 {[%clk 0:02:34]}  f6 {[%clk 0:02:51]} 8. Bb5 {[%clk 0:02:12]}  Bd7 {[%clk 0:02:50]} 9. O-O {[%clk 0:02:01]}  fxe5 {[%clk 0:02:24]} 10. Bxc6 {[%clk 0:02:00]}  exd4 {[%clk 0:02:17]} 11. Bxd7+ {[%clk 0:01:56]}  Qxd7 {[%clk 0:02:18]} 12. Qxd4 {[%clk 0:01:55]}  Bf6 {[%clk 0:02:13]} 13. Qg4 {[%clk 0:01:36]}  e5 {[%clk 0:02:05]} 14. Nxe5 {[%clk 0:01:31]}  Qxg4 {[%clk 0:02:00]} 15. Nxg4 {[%clk 0:01:31]}  Kf7 {[%clk 0:02:00]} 16. Rd1 {[%clk 0:01:25]}  Ne7 {[%clk 0:01:59]} 17. Nxf6 {[%clk 0:01:22]}  Kxf6 {[%clk 0:02:00]} 18. Be3 {[%clk 0:01:21]}  a6 {[%clk 0:01:54]} 19. Bc5 {[%clk 0:01:20]}  Rhd8 {[%clk 0:01:51]} 20. Bxe7+ {[%clk 0:01:17]}  Kxe7 {[%clk 0:01:51]} 21. Rd2 {[%clk 0:01:06]}  Kd6 {[%clk 0:01:48]} 22. Rad1 {[%clk 0:01:00]}  Kc5 {[%clk 0:01:48]} 23. Rd4 {[%clk 0:00:47]}  a5 {[%clk 0:01:47]} 24. c4 {[%clk 0:00:44]}  Rac8 {[%clk 0:01:36]} 25. cxd5 {[%clk 0:00:42]}  Kd6 {[%clk 0:01:36]} 26. R4d2 {[%clk 0:00:42]}  a4 {[%clk 0:01:33]} 27. a3 {[%clk 0:00:40]}  Rc4 {[%clk 0:01:32]} 28. g3 {[%clk 0:00:37]}  g5 {[%clk 0:01:32]} 29. Kg2 {[%clk 0:00:36]}  b5 {[%clk 0:01:31]} 30. Re1 {[%clk 0:00:36]}  Kc5 {[%clk 0:01:24]} 31. d6 {[%clk 0:00:33]}  Rxd6 {[%clk 0:01:14]} 32. Re5+ {[%clk 0:00:33]}  Kc6 {[%clk 0:01:15]} 33. Rxd6+ {[%clk 0:00:33]}  Kxd6 {[%clk 0:01:16]} 34. Rxb5 {[%clk 0:00:33]}  h6 {[%clk 0:01:15]} 35. h3 {[%clk 0:00:33]}  Kc6 {[%clk 0:01:08]} 36. Rf5 {[%clk 0:00:30]}  Rc2 {[%clk 0:01:07]} 37. Ra5 {[%clk 0:00:28]}  Rc4 {[%clk 0:01:03]} 38. Ra6+ {[%clk 0:00:28]}  Kb7 {[%clk 0:01:00]} 39. Rxh6 {[%clk 0:00:27]}  Rc2 {[%clk 0:01:01]} 40. Rg6 {[%clk 0:00:27]}  Rxb2 {[%clk 0:01:01]} 41. Rxg5 {[%clk 0:00:28]}  Kb6 {[%clk 0:01:01]} 42. Rg4 {[%clk 0:00:27]}  Kb5 {[%clk 0:00:59]} 43. Rf4 {[%clk 0:00:27]}  Rb3 {[%clk 0:00:58]} 44. Rf3 {[%clk 0:00:27]}  Kc4 {[%clk 0:00:56]} 45. Rf4+ {[%clk 0:00:26]}  Kb5 {[%clk 0:00:55]} 46. Rf3 {[%clk 0:00:26]}  Kc4 {[%clk 0:00:56]} 47. h4 {[%clk 0:00:27]}  Rb1 {[%clk 0:00:56]} 48. h5 {[%clk 0:00:26]}  Rd1 {[%clk 0:00:56]} 49. g4 {[%clk 0:00:25]}  Kd5 {[%clk 0:00:53]} 50. h6 {[%clk 0:00:24]}  Ke6 {[%clk 0:00:51]} 51. h7 {[%clk 0:00:24]}  Rd8 {[%clk 0:00:51]} 52. g5 {[%clk 0:00:24]}  Rd5 {[%clk 0:00:51]} 53. g6 {[%clk 0:00:24]}  Rg5+ {[%clk 0:00:50]} 54. Rg3 {[%clk 0:00:24]} 1-0


[Site "https://www.chess.com"]

[Event "Titled Tuesday Blitz February 15 Early 2022"]
[White "Kozin, Yuri"]
[Black "Bintang, Rasyid A. Hidayat"]
[WhiteFideId "4129920"]
[BlackFideId "7105355"]
[WhiteElo "2531"]
[BlackElo "2351"]
[Result "0-1"]
[Round "09"]
[TimeControl "180+1"]
[Date "2022.02.15"]
[WhiteClock "0:00:01"]
[BlackClock "0:01:37"]

1. e4 {[%clk 0:03:00]}  e5 {[%clk 0:02:59]} 2. Nf3 {[%clk 0:03:00]}  Nc6 {[%clk 0:02:59]} 3. Bb5 {[%clk 0:03:01]}  a6 {[%clk 0:02:59]} 4. Ba4 {[%clk 0:03:01]}  d6 {[%clk 0:02:58]} 5. c3 {[%clk 0:03:00]}  f5 {[%clk 0:02:58]} 6. exf5 {[%clk 0:02:54]}  Bxf5 {[%clk 0:02:59]} 7. d4 {[%clk 0:02:49]}  e4 {[%clk 0:02:57]} 8. Nfd2 {[%clk 0:02:01]}  d5 {[%clk 0:02:56]} 9. Nf1 {[%clk 0:01:53]}  Nf6 {[%clk 0:02:49]} 10. Bg5 {[%clk 0:01:49]}  Be7 {[%clk 0:02:48]} 11. Ne3 {[%clk 0:01:48]}  Be6 {[%clk 0:02:48]} 12. c4 {[%clk 0:01:44]}  dxc4 {[%clk 0:02:27]} 13. Bxf6 {[%clk 0:01:44]}  Bxf6 {[%clk 0:02:25]} 14. Bxc6+ {[%clk 0:01:27]}  bxc6 {[%clk 0:02:25]} 15. Qa4 {[%clk 0:01:24]}  O-O {[%clk 0:02:19]} 16. Qxc6 {[%clk 0:01:21]}  Qd7 {[%clk 0:02:17]} 17. Qxe4 {[%clk 0:01:17]}  Bf5 {[%clk 0:02:15]} 18. Qxf5 {[%clk 0:01:05]}  Qxd4 {[%clk 0:02:14]} 19. Nc3 {[%clk 0:01:00]}  Qxe3+ {[%clk 0:02:09]} 20. fxe3 {[%clk 0:00:37]}  Bxc3+ {[%clk 0:02:09]} 21. Ke2 {[%clk 0:00:35]}  Rxf5 {[%clk 0:02:10]} 22. bxc3 {[%clk 0:00:36]}  Raf8 {[%clk 0:02:09]} 23. Rhf1 {[%clk 0:00:34]}  Rxf1 {[%clk 0:02:06]} 24. Rxf1 {[%clk 0:00:35]}  Rxf1 {[%clk 0:02:07]} 25. Kxf1 {[%clk 0:00:35]}  Kf7 {[%clk 0:02:05]} 26. Kf2 {[%clk 0:00:35]}  Ke6 {[%clk 0:02:05]} 27. Kf3 {[%clk 0:00:35]}  Kf5 {[%clk 0:02:04]} 28. g4+ {[%clk 0:00:31]}  Ke5 {[%clk 0:02:03]} 29. h4 {[%clk 0:00:31]}  g6 {[%clk 0:02:03]} 30. e4 {[%clk 0:00:21]}  c6 {[%clk 0:01:55]} 31. Ke3 {[%clk 0:00:19]}  c5 {[%clk 0:01:54]} 32. Kf3 {[%clk 0:00:18]}  a5 {[%clk 0:01:51]} 33. a4 {[%clk 0:00:18]}  h6 {[%clk 0:01:50]} 34. g5 {[%clk 0:00:15]}  h5 {[%clk 0:01:49]} 35. Ke3 {[%clk 0:00:14]}  Kd6 {[%clk 0:01:45]} 36. Kf4 {[%clk 0:00:13]}  Ke6 {[%clk 0:01:45]} 37. Ke3 {[%clk 0:00:05]}  Ke5 {[%clk 0:01:45]} 38. Kf3 {[%clk 0:00:05]}  Kd6 {[%clk 0:01:44]} 39. Kf4 {[%clk 0:00:05]}  Ke6 {[%clk 0:01:44]} 40. e5 {[%clk 0:00:04]}  Kd5 {[%clk 0:01:44]} 41. e6 {[%clk 0:00:03]}  Kxe6 {[%clk 0:01:43]} 42. Ke4 {[%clk 0:00:04]}  Kd6 {[%clk 0:01:41]} 43. Kf4 {[%clk 0:00:04]}  Ke6 {[%clk 0:01:41]} 44. Ke4 {[%clk 0:00:05]}  Kd6 {[%clk 0:01:41]} 45. Kf4 {[%clk 0:00:05]}  Kd5 {[%clk 0:01:38]} 46. Ke3 {[%clk 0:00:03]}  Ke5 {[%clk 0:01:37]} 47. Kf3 {[%clk 0:00:04]}  Kf5 {[%clk 0:01:37]} 48. Ke3 {[%clk 0:00:02]}  Kg4 {[%clk 0:01:36]} 49. Ke4 {[%clk 0:00:01]}  Kxh4 {[%clk 0:01:37]} 0-1


[Site "https://www.chess.com"]

[Event "Titled Tuesday Blitz February 15 Early 2022"]
[White "Kucuksari, Kaan"]
[Black "Vitiugov, Nikita"]
[WhiteFideId "6380166"]
[BlackFideId "4152956"]
[WhiteElo "2305"]
[BlackElo "2673"]
[Result "0-1"]
[Round "09"]
[TimeControl "180+1"]
[Date "2022.02.15"]
[WhiteClock "0:00:07"]
[BlackClock "0:00:04"]

1. d4 {[%clk 0:02:34]}  Nf6 {[%clk 0:00:39]} 2. c4 {[%clk 0:02:33]}  g6 {[%clk 0:00:39]} 3. g3 {[%clk 0:02:34]}  Bg7 {[%clk 0:00:39]} 4. Bg2 {[%clk 0:02:34]}  O-O {[%clk 0:00:40]} 5. Nc3 {[%clk 0:02:35]}  c5 {[%clk 0:00:40]} 6. Nf3 {[%clk 0:02:36]}  d6 {[%clk 0:00:39]} 7. d5 {[%clk 0:02:33]}  e6 {[%clk 0:00:39]} 8. O-O {[%clk 0:02:34]}  exd5 {[%clk 0:00:39]} 9. cxd5 {[%clk 0:02:35]}  Re8 {[%clk 0:00:39]} 10. Bf4 {[%clk 0:02:35]}  a6 {[%clk 0:00:38]} 11. a4 {[%clk 0:02:34]}  Bf5 {[%clk 0:00:37]} 12. Nh4 {[%clk 0:02:27]}  Bg4 {[%clk 0:00:37]} 13. h3 {[%clk 0:02:19]}  Bc8 {[%clk 0:00:37]} 14. Nf3 {[%clk 0:02:19]}  Nh5 {[%clk 0:00:36]} 15. Bg5 {[%clk 0:02:19]}  Qc7 {[%clk 0:00:33]} 16. e4 {[%clk 0:01:57]}  Nd7 {[%clk 0:00:32]} 17. Nd2 {[%clk 0:01:55]}  Rb8 {[%clk 0:00:31]} 18. Rc1 {[%clk 0:01:05]}  Ne5 {[%clk 0:00:31]} 19. Qe2 {[%clk 0:01:02]}  h6 {[%clk 0:00:27]} 20. Be3 {[%clk 0:01:02]}  b5 {[%clk 0:00:19]} 21. b4 {[%clk 0:00:56]}  c4 {[%clk 0:00:18]} 22. a5 {[%clk 0:00:55]}  Nd3 {[%clk 0:00:17]} 23. Nxb5 {[%clk 0:00:49]}  Nxc1 {[%clk 0:00:15]} 24. Rxc1 {[%clk 0:00:48]}  axb5 {[%clk 0:00:15]} 25. g4 {[%clk 0:00:35]}  Nf6 {[%clk 0:00:15]} 26. Bd4 {[%clk 0:00:35]}  Nd7 {[%clk 0:00:14]} 27. Bxg7 {[%clk 0:00:35]}  Kxg7 {[%clk 0:00:14]} 28. Nb1 {[%clk 0:00:32]}  Ne5 {[%clk 0:00:13]} 29. Nc3 {[%clk 0:00:33]}  Qe7 {[%clk 0:00:13]} 30. Qe3 {[%clk 0:00:29]}  g5 {[%clk 0:00:13]} 31. Ne2 {[%clk 0:00:22]}  Nd3 {[%clk 0:00:12]} 32. Rb1 {[%clk 0:00:22]}  Qe5 {[%clk 0:00:12]} 33. Ng3 {[%clk 0:00:22]}  Nf4 {[%clk 0:00:11]} 34. Bf1 {[%clk 0:00:22]}  Bd7 {[%clk 0:00:10]} 35. Rc1 {[%clk 0:00:20]}  Rec8 {[%clk 0:00:10]} 36. h4 {[%clk 0:00:21]}  Kg8 {[%clk 0:00:09]} 37. f3 {[%clk 0:00:17]}  f6 {[%clk 0:00:08]} 38. Nh1 {[%clk 0:00:11]}  gxh4 {[%clk 0:00:08]} 39. Nf2 {[%clk 0:00:11]}  Kg7 {[%clk 0:00:08]} 40. Bh3 {[%clk 0:00:11]}  Nxd5 {[%clk 0:00:08]} 41. Qd2 {[%clk 0:00:11]}  Nf4 {[%clk 0:00:08]} 42. Bf1 {[%clk 0:00:09]}  c3 {[%clk 0:00:08]} 43. Qe3 {[%clk 0:00:10]}  Be6 {[%clk 0:00:07]} 44. Qa7+ {[%clk 0:00:11]}  Bf7 {[%clk 0:00:07]} 45. Qe3 {[%clk 0:00:12]}  c2 {[%clk 0:00:06]} 46. a6 {[%clk 0:00:11]}  Rc3 {[%clk 0:00:06]} 47. a7 {[%clk 0:00:12]}  Ra8 {[%clk 0:00:06]} 48. Qb6 {[%clk 0:00:11]}  Rxf3 {[%clk 0:00:06]} 49. Qb7 {[%clk 0:00:11]}  Rg3+ {[%clk 0:00:06]} 50. Kh1 {[%clk 0:00:11]}  Re8 {[%clk 0:00:05]} 51. a8=Q {[%clk 0:00:10]}  Rxa8 {[%clk 0:00:05]} 52. Qxa8 {[%clk 0:00:11]}  Qd4 {[%clk 0:00:04]} 53. Rxc2 {[%clk 0:00:10]}  Qe3 {[%clk 0:00:05]} 54. e5 {[%clk 0:00:07]}  Bd5+ {[%clk 0:00:04]} 55. Qxd5 {[%clk 0:00:06]}  Nxd5 {[%clk 0:00:05]} 56. exf6+ {[%clk 0:00:06]}  Nxf6 {[%clk 0:00:04]} 57. Rc7+ {[%clk 0:00:06]}  Kf8 {[%clk 0:00:04]} 58. Rc8+ {[%clk 0:00:06]}  Ne8 {[%clk 0:00:05]} 59. Rc7 {[%clk 0:00:07]}  Qf3+ {[%clk 0:00:04]} 0-1


[Site "https://www.chess.com"]